bitfinex/quotes_ETHUSD_20211001
["timestamp","ask_amount","ask_price","bid_price","bid_amount"]
[1633127434134,0.17890622,3308.5,3308.1,0.1507161]
[1633127435144,0.98968932,3308.5,3308.1,0.1507161]
[1633127435534,0.17890622,3308.5,3308.1,0.1507161]
[1633127436537,0.97370066,3308.5,3308.1,0.1507161]
[1633127436741,0.17890622,3308.5,3308.1,0.1507161]
[1633127437537,0.04428445,3308.5,3308.1,0.1507161]
[1633127437841,0.04428445,3308.5,3308.4,1.00958561]
[1633127438040,0.13462191,3308.4,3308.0,1.56565037]
[1633127438640,0.13462191,3308.4,3308.1,17.666371]
[1633127438841,0.13462191,3308.4,3308.1,0.026371]
[1633127439643,0.13462191,3308.4,3308.0,6.09738037]
[1633127443044,0.04428445,3308.5,3308.0,6.09738037]
[1633127443241,0.04428445,3308.5,3308.1,0.15074887]
[1633127443442,0.1345979,3308.3,3308.1,0.15074887]
[1633127443640,0.1345979,3308.3,3308.2,0.75478353]
[1633127443841,0.1345979,3308.3,3308.2,5.28649353]
[1633127444840,0.1345979,3308.3,3308.2,4.53171]
[1633127445044,0.1345979,3308.3,3308.1,0.15074887]
[1633127445246,0.0845979,3308.3,3308.1,0.15074887]
[1633127448641,0.003,3308.5,3308.1,0.15074887]
[1633127448842,0.003,3308.5,3308.0,1.56565037]
[1633127448843,0.97137947,3308.4,3308.0,1.56565037]
[1633127449052,0.97137947,3308.4,3307.0,0.003]
[1633127449053,1.17297643,3307.8,3307.0,0.003]
[1633127449248,0.182,3307.7,3307.0,0.003]
[1633127449448,4.119801,3307.6,3306.6,0.006]
[1633127449647,0.054837,3306.7,3306.2,0.009]
[1633127449846,1.784137,3306.7,3305.8,0.012]
[1633127450046,1.784137,3306.7,3305.8,0.95243841]
[1633127450246,6.320207,3306.7,3305.8,0.95243841]
[1633127450445,6.320207,3306.7,3305.9,0.012]
[1633127450647,0.182,3306.6,3305.9,0.012]
[1633127451046,0.84693729,3306.5,3305.9,0.012]
[1633127451246,0.182,3306.4,3305.9,0.012]
[1633127451446,3.05597174,3306.4,3305.9,0.012]
[1633127451648,0.182,3306.4,3305.9,0.012]
[1633127451846,0.00086593,3306.6,3306.3,3.12737789]
[1633127452049,0.00086593,3306.6,3306.5,3.701934]
[1633127452251,0.00086593,3306.6,3306.5,3.72630114]
[1633127452445,0.00086593,3306.6,3306.5,11.51446508]
[1633127452646,6.593e-05,3306.6,3306.5,15.04383115]
[1633127452848,0.0412931,3307.7,3306.6,4.05]
[1633127453045,0.0412931,3307.7,3307.5,0.02434557]
[1633127453247,0.0412931,3307.7,3307.6,0.182]
[1633127453449,0.0412931,3307.7,3307.6,3.71136607]
[1633127453645,0.0412931,3307.7,3307.6,3.21136607]
[1633127454244,0.0412931,3307.7,3307.6,3.38729524]
[1633127454446,0.15075843,3307.7,3307.6,3.38729524]
[1633127455145,0.10946533,3307.7,3307.6,3.38729524]
[1633127455345,0.10946533,3307.7,3307.6,4.68129524]
[1633127455945,4.46741005,3308.0,3307.7,4.05]
[1633127456149,4.46741005,3308.0,3307.8,0.182]
[1633127456346,0.003,3309.0,3307.9,4.05]
[1633127456546,0.003,3309.0,3308.2,4.53204]
[1633127456847,0.003,3309.0,3308.3,5.00907412]
[1633127457145,0.003,3309.0,3308.4,6.85396435]
[1633127457347,0.003,3309.0,3308.4,6.91975332]
[1633127457549,0.003,3309.0,3308.4,11.45098332]
[1633127457746,0.003,3309.0,3308.4,4.71323]
[1633127458149,0.003,3309.0,3308.3,6.04164]
[1633127458751,3.02182,3309.6,3308.4,2.1]
[1633127458948,0.88680405,3309.3,3308.3,6.04164]
[1633127459150,0.88680405,3309.3,3309.0,0.003]
[1633127459548,0.88680405,3309.3,3309.1,0.23017025]
[1633127459950,2.40509503,3309.2,3309.1,0.23017025]
[1633127461952,2.40621036,3309.2,3309.1,0.23017025]
[1633127462153,2.44748463,3309.2,3309.1,0.23017025]
[1633127462553,4.05,3309.1,3308.0,0.003]
[1633127462756,4.05,3309.1,3307.5,0.003]
[1633127462757,4.232,3307.6,3307.5,0.003]
[1633127462956,4.232,3307.6,3307.3,0.003]
[1633127462957,0.31861937,3307.5,3307.3,0.003]
[1633127463155,0.31104643,3307.3,3306.5,0.006]
[1633127463355,0.31104643,3307.3,3306.4,0.009]
[1633127463356,0.30958942,3307.2,3306.4,0.009]
[1633127463555,0.93725795,3306.6,3306.4,0.009]
[1633127463754,0.182,3306.7,3306.4,0.009]
[1633127464759,7.5603333,3306.6,3306.4,0.009]
[1633127465154,7.59589738,3306.6,3306.4,0.009]
[1633127465355,7.59589738,3306.6,3306.5,0.1159539]
[1633127465754,7.59589738,3306.6,3306.5,0.1249539]
[1633127466157,4.57188408,3306.6,3306.5,0.1249539]
[1633127466354,4.53632,3306.6,3306.5,0.1249539]
[1633127466559,0.21705937,3306.7,3306.5,0.1249539]
[1633127466754,4.53592,3306.6,3306.5,0.1249539]
[1633127466954,4.53592,3306.6,3306.5,0.1189539]
[1633127467156,4.53592,3306.6,3306.5,0.1249539]
[1633127467755,4.53592,3306.6,3306.5,0.0749539]
[1633127467956,4.5772261,3306.6,3306.5,0.0749539]
[1633127470460,4.5772261,3306.6,3306.5,5.39e-05]
[1633127470664,3.22814645,3306.2,3305.2,0.003]
[1633127470860,3.22814645,3306.2,3305.1,0.003]
[1633127470861,0.025274,3306.0,3305.1,0.003]
[1633127471060,0.935,3305.7,3304.9,0.006]
[1633127471259,0.182,3305.6,3305.0,0.003]
[1633127471663,0.182,3305.6,3305.0,0.006]
[1633127472062,4.28555335,3306.3,3305.4,0.05595]
[1633127472267,4.28555335,3306.3,3306.0,0.076309]
[1633127472461,0.003,3306.5,3306.3,4.28555335]
[1633127472860,0.003,3306.5,3306.4,6.81033596]
[1633127473164,0.003,3307.5,3306.7,5.137435]
[1633127473362,0.003,3307.5,3307.3,0.0241701]
[1633127473567,0.003,3307.5,3307.4,4.232]
[1633127473965,0.003,3307.5,3307.4,0.182]
[1633127474169,0.003,3307.5,3307.3,1.00528582]
[1633127474361,0.003,3307.5,3306.9,0.182]
[1633127475063,0.003,3307.5,3306.5,0.182]
[1633127475269,0.003,3307.5,3306.4,0.83806474]
[1633127475270,0.92362843,3307.1,3306.4,0.83806474]
[1633127475463,1.10562843,3307.1,3306.5,0.003]
[1633127475663,0.182,3307.1,3306.5,0.003]
[1633127475863,0.182,3307.4,3306.5,0.003]
[1633127476264,4.5353,3307.0,3306.5,0.003]
[1633127476464,4.5353,3307.0,3306.6,0.17159398]
[1633127476668,0.11386149,3307.3,3307.0,0.85409227]
[1633127477063,0.11386149,3307.3,3306.6,0.35359398]
[1633127477865,0.182,3307.2,3306.6,0.17159398]
[1633127478064,0.20669136,3307.2,3306.6,0.17159398]
[1633127478662,3.20561,3307.2,3306.6,0.17159398]
[1633127479063,3.20561,3307.2,3306.7,0.86359166]
[1633127479266,3.23884335,3307.2,3306.7,0.86359166]
[1633127479861,0.17,3307.0,3306.7,0.86359166]
[1633127480063,0.17,3307.0,3306.8,1.294]
[1633127480265,0.17,3307.0,3306.6,0.17159398]
[1633127481666,0.182,3306.9,3306.6,0.17159398]
[1633127482064,0.182,3306.9,3306.4,0.003]
[1633127482464,4.53556,3306.8,3306.5,0.75934962]
[1633127482664,0.17,3307.0,3306.5,0.75934962]
[1633127482865,0.17,3307.0,3306.5,0.76234962]
[1633127483064,3.19385,3307.0,3306.5,0.76234962]
[1633127483666,4.53538,3306.9,3306.5,0.76234962]
[1633127484264,4.53538,3306.9,3306.5,0.003]
[1633127484470,4.43538,3306.9,3306.5,0.003]
[1633127484667,4.43538,3306.9,3306.4,0.003]
[1633127484668,4.459354,3306.9,3306.4,0.003]
[1633127485266,0.82591001,3306.6,3306.4,0.003]
[1633127485465,0.023974,3306.9,3306.4,0.003]
[1633127485665,0.06527935,3306.9,3306.4,0.003]
[1633127485868,0.04130535,3306.9,3306.4,0.003]
[1633127486470,4.53564,3306.8,3306.4,0.003]
[1633127486867,0.04130535,3306.9,3306.4,0.80993017]
[1633127486868,0.0767192,3306.9,3306.4,0.80993017]
[1633127487074,0.04130535,3306.9,3306.4,0.80993017]
[1633127487268,0.04130535,3306.9,3306.5,0.003]
[1633127487467,0.04130535,3306.9,3306.5,0.17469239]
[1633127487669,0.11378926,3306.8,3306.5,0.17469239]
[1633127489330,4.53576,3306.7,3306.5,0.17469239]
[1633127489533,3.88744244,3306.3,3305.5,0.006]
[1633127489734,3.88744244,3306.3,3305.4,0.006]
[1633127489931,3.88744244,3306.3,3304.9,0.009]
[1633127490129,3.88744244,3306.3,3305.0,0.52111223]
[1633127490332,3.02485,3306.0,3305.4,1.00519802]
[1633127490732,3.02485,3306.0,3305.5,0.006]
[1633127491137,3.06616621,3306.0,3305.5,0.006]
[1633127491339,0.04131621,3306.0,3305.7,1.294]
[1633127491536,0.04131621,3306.0,3305.6,4.53552]
[1633127491735,0.04131621,3306.0,3305.9,0.78389756]
[1633127492136,0.04131621,3306.0,3305.9,0.003]
[1633127492536,0.04131621,3306.0,3305.7,0.52425266]
[1633127492735,0.04131621,3306.0,3305.8,1.297]
[1633127492937,0.04131621,3306.0,3305.9,0.0860759]
[1633127493140,0.04131621,3306.0,3305.9,0.0890759]
[1633127493735,4.57794621,3306.0,3305.9,0.0890759]
[1633127494337,4.57794621,3306.0,3305.9,7.59e-05]
[1633127494536,7.09503838,3306.0,3305.9,7.59e-05]
[1633127494736,4.99503838,3306.0,3304.9,0.0060759]
[1633127494941,2.29650838,3306.0,3304.9,0.0060759]
[1633127495336,0.88685356,3305.5,3304.9,0.0060759]
[1633127495537,0.03515528,3305.6,3304.9,0.0060759]
[1633127495738,6.08315363,3305.7,3304.9,0.0060759]
[1633127495939,10.54463984,3305.7,3304.9,0.0060759]
[1633127496138,4.53782,3305.3,3304.9,0.0060759]
[1633127496937,4.57914417,3305.3,3304.9,0.0060759]
[1633127497138,4.53805,3305.1,3304.9,0.0060759]
[1633127498540,4.53805,3305.1,3305.0,0.04333342]
[1633127498739,4.53805,3305.1,3305.0,3.342e-05]
[1633127498740,4.78033672,3305.1,3305.0,3.342e-05]
[1633127498939,4.78033672,3305.1,3305.0,0.00610932]
[1633127499540,4.92533672,3305.1,3305.0,0.00610932]
[1633127501340,0.24228672,3305.1,3305.0,0.00610932]
[1633127501544,0.04132417,3305.3,3305.0,0.00610932]
[1633127501545,0.04132417,3305.3,3305.2,0.84386195]
[1633127501943,0.04132417,3305.3,3305.2,0.84693785]
[1633127502340,0.04132417,3305.3,3305.2,1.36881187]
[1633127503045,0.04132417,3305.3,3305.2,1.36879939]
[1633127503842,0.04132417,3305.3,3305.2,1.51156049]
[1633127504243,0.18416606,3305.3,3305.2,2.33118963]
[1633127505145,4.72197606,3305.3,3305.2,0.98969895]
[1633127505742,0.18416606,3305.3,3305.2,0.98969895]
[1633127506543,2.33416606,3305.3,3305.2,0.98969895]
[1633127506742,0.18416606,3305.3,3305.2,0.98969895]
[1633127507543,2.23416606,3305.3,3305.2,0.98969895]
[1633127507946,2.18416606,3305.3,3305.2,0.98969895]
[1633127509347,2.05,3305.3,3305.2,0.98969895]
[1633127509743,2.05,3305.3,3305.2,0.84693785]
[1633127509744,2.18850411,3305.3,3305.2,0.84693785]
[1633127509944,0.13850411,3305.3,3305.2,0.84693785]
[1633127513347,1.04509204,3305.3,3305.2,0.84693785]
[1633127514348,3.39509204,3305.3,3305.2,0.84693785]
[1633127514550,0.90658793,3305.3,3305.2,0.84693785]
[1633127514748,0.90658793,3305.3,3305.2,0.99403687]
[1633127515148,0.90658793,3305.3,3305.2,0.84693785]
[1633127515351,1.04509219,3305.3,3305.2,0.84693785]
[1633127517355,0.13850426,3305.3,3305.2,0.84693785]
[1633127518360,0.87782305,3305.3,3305.2,0.84693785]
[1633127519758,0.13850426,3305.3,3305.2,0.84693785]
[1633127520157,4.05,3305.3,3305.2,0.64693785]
[1633127520358,4.53758,3305.4,3305.2,0.79403687]
[1633127520557,4.53758,3305.4,3305.2,0.64693785]
[1633127520757,1.112841,3305.3,3305.2,0.64386195]
[1633127521158,1.112841,3305.3,3305.2,0.64986195]
[1633127523161,0.13850439,3305.3,3305.2,0.64986195]
[1633127523965,3.91857607,3306.3,3305.5,2.16806231]
[1633127524162,3.88744244,3306.3,3305.6,2.9629216]
[1633127524363,3.88744244,3306.3,3305.6,2.9659216]
[1633127524565,3.88744244,3306.3,3305.7,0.003]
[1633127525163,3.88744244,3306.3,3305.9,0.73500457]
[1633127525561,3.88744244,3306.3,3306.0,2.58378366]
[1633127525763,3.88744244,3306.3,3306.0,0.21907219]
[1633127526171,3.88744244,3306.3,3306.0,0.003]
[1633127526364,0.06947003,3306.2,3306.0,0.003]
[1633127526563,0.06947003,3306.2,3305.7,0.003]
[1633127526762,0.06947003,3306.2,3305.6,0.003]
[1633127527163,0.06947003,3306.2,3305.6,0.75232675]
[1633127527363,4.60578003,3306.2,3305.6,0.75232675]
[1633127527567,4.60578003,3306.2,3305.7,0.003]
[1633127527763,0.06947003,3306.2,3305.7,0.003]
[1633127528564,0.98535521,3306.2,3305.7,0.003]
[1633127528963,0.98535521,3306.2,3305.6,0.003]
[1633127529165,4.00982521,3306.2,3305.6,0.003]
[1633127529563,4.04891825,3306.2,3305.6,0.003]
[1633127530164,4.53709,3305.9,3305.6,0.003]
[1633127531168,6.03709,3305.9,3305.7,0.21618706]
[1633127531567,6.03709,3305.9,3305.8,0.003]
[1633127531766,6.18209,3305.9,3305.8,0.003]
[1633127531966,6.18209,3305.9,3305.6,0.003]
[1633127532165,3.83873679,3305.7,3305.6,0.003]
[1633127532367,0.98873679,3305.7,3305.6,0.003]
[1633127533365,5.52631679,3305.7,3305.6,0.003]
[1633127535276,5.52631679,3305.7,3304.9,0.003]
[1633127535277,4.53928,3305.1,3304.9,0.003]
[1633127535469,4.195,3305.0,3304.9,0.003]
[1633127535670,5.98431749,3305.0,3304.8,0.006]
[1633127535868,4.33625976,3304.8,3304.7,0.006]
[1633127536068,4.91324981,3304.8,3304.7,0.006]
[1633127536268,0.86324981,3304.8,3304.7,0.006]
[1633127536473,6.19776,3304.8,3304.7,0.006]
[1633127536668,6.19776,3304.8,3304.7,0.22251541]
[1633127537069,6.19776,3304.8,3304.7,0.006]
[1633127537267,6.26689163,3304.8,3304.7,0.006]
[1633127537667,7.07047528,3304.8,3304.7,0.006]
[1633127540267,6.26689163,3304.8,3304.7,0.006]
[1633127541269,8.5033028,3304.8,3304.7,0.006]
[1633127541470,1.56913163,3304.8,3304.7,1.3]
[1633127541677,1.56913163,3304.8,3304.7,0.006]
[1633127542070,1.5,3304.8,3304.7,0.006]
[1633127542269,1.5,3304.8,3304.7,0.22251541]
[1633127542468,1.5,3304.8,3304.7,0.74568933]
[1633127542469,1.489436,3304.8,3304.7,0.74568933]
[1633127542670,1.55856777,3304.8,3304.7,0.52924687]
[1633127543670,1.55856777,3304.8,3304.7,0.52928721]
[1633127545033,6.09672777,3304.8,3304.7,0.006]
[1633127545370,7.60592777,3304.8,3304.7,0.006]
[1633127546171,7.60592777,3304.8,3304.4,0.006]
[1633127546172,5.03120456,3304.7,3304.4,0.006]
[1633127546571,5.26577595,3304.7,3304.4,0.006]
[1633127546777,0.98120456,3304.7,3304.4,0.006]
[1633127548053,1.16320456,3304.7,3304.4,0.006]
[1633127548172,4.05,3304.6,3304.4,0.006]
[1633127548371,4.232,3304.5,3304.4,0.006]
[1633127548972,4.05,3304.4,3304.1,0.006]
[1633127549171,4.25698042,3304.4,3304.1,0.006]
[1633127550171,0.20698042,3304.4,3304.1,0.006]
[1633127550370,4.74745042,3304.4,3304.1,0.006]
[1633127550570,4.72247,3304.4,3304.1,0.006]
[1633127551976,1.68601259,3304.3,3304.1,0.006]
[1633127552173,5.12860325,3304.2,3304.0,0.009]
[1633127552772,1.07860325,3304.2,3304.0,0.009]
[1633127553372,5.61939325,3304.2,3304.1,0.21672895]
[1633127553572,8.64654325,3304.2,3304.1,0.21672895]
[1633127553772,8.64654325,3304.2,3304.0,0.009]
[1633127553773,4.11897471,3304.1,3304.0,0.009]
[1633127553972,0.25097471,3304.1,3304.0,0.009]
[1633127558576,0.182,3304.1,3304.0,0.009]
[1633127558776,0.182,3304.1,3304.0,0.22574538]
[1633127559179,0.25096274,3304.1,3304.0,0.009]
[1633127560779,2.20096274,3304.1,3304.0,0.009]
[1633127561580,0.25570192,3304.0,3303.7,0.006]
[1633127561780,0.182,3303.9,3303.7,0.006]
[1633127562578,4.29599495,3303.8,3303.7,0.006]
[1633127562778,4.47799495,3303.8,3303.7,0.006]
[1633127563381,4.84293169,3303.7,3303.4,0.006]
[1633127563689,4.05,3303.6,3303.4,0.006]
[1633127563881,4.232,3303.6,3303.4,0.006]
[1633127564284,0.182,3303.6,3303.5,0.2259097]
[1633127564682,6.23738,3303.6,3303.5,0.009]
[1633127564886,6.30622181,3303.6,3303.5,0.009]
[1633127569743,6.30622181,3303.6,3303.5,0.2259097]
[1633127569744,6.23738,3303.6,3303.5,0.2259097]
[1633127570149,6.23738,3303.6,3303.5,0.009]
[1633127570345,6.30622195,3303.6,3303.5,0.009]
[1633127575152,6.23738,3303.6,3303.5,0.009]
[1633127575358,6.23738,3303.6,3303.5,0.2259097]
[1633127575551,6.23738,3303.6,3303.5,0.009]
[1633127575754,6.30622208,3303.6,3303.5,0.009]
[1633127577963,6.30622208,3303.6,3302.9,0.006]
[1633127577964,3.0279,3303.4,3302.9,0.006]
[1633127578160,15.32163468,3303.0,3302.9,0.006]
[1633127578460,5.04600468,3303.0,3302.9,0.006]
[1633127578658,16.94310468,3303.0,3302.9,0.006]
[1633127578859,17.75425325,3303.0,3302.9,0.006]
[1633127579661,17.72989326,3303.0,3302.9,0.006]
[1633127580859,17.72989326,3303.0,3302.9,0.22310695]
[1633127581260,17.72989326,3303.0,3302.9,0.006]
[1633127581462,23.83859014,3303.0,3302.9,0.006]
[1633127581860,24.64541545,3303.0,3302.9,0.006]
[1633127582661,4.05,3302.9,3302.8,0.006]
[1633127582860,14.82904,3302.9,3302.8,0.006]
[1633127584260,14.82904,3302.9,3302.5,0.003]
[1633127584465,14.82904,3302.9,3301.2,1.879548]
[1633127584466,4.56513462,3302.6,3301.2,1.879548]
[1633127584666,4.56513462,3302.6,3300.9,0.006]
[1633127584667,15.0,3301.4,3300.9,0.006]
[1633127584863,1.09755654,3301.3,3300.9,0.006]
[1633127585063,4.05,3301.2,3300.9,0.006]
[1633127585263,10.55898676,3301.1,3300.9,0.006]
[1633127585671,10.55898676,3301.1,3299.5,0.009]
[1633127585672,3.42011572,3300.4,3299.5,0.009]
[1633127585867,2.151956,3300.1,3299.5,0.009]
[1633127586065,2.151956,3300.1,3299.2,0.016]
[1633127586066,4.05,3299.4,3298.6,0.006]
[1633127586266,15.0,3299.0,3298.6,0.006]
[1633127586467,4.74669848,3298.9,3298.6,0.006]
[1633127586765,4.722,3298.9,3298.8,2.466]
[1633127586964,0.182,3298.9,3298.8,3.76]
[1633127587165,0.182,3298.9,3298.8,2.466]
[1633127587362,0.182,3298.9,3298.8,0.006]
[1633127588565,1.3815,3298.9,3298.8,0.006]
[1633127588764,1.3815,3298.9,3298.8,1.3]
[1633127588964,0.06772674,3299.0,3298.8,1.3]
[1633127589164,0.06772674,3299.0,3298.8,0.006]
[1633127589165,0.06172674,3299.0,3298.8,0.006]
[1633127589364,0.06172674,3299.0,3298.9,0.93924817]
[1633127589564,0.05572674,3299.0,3298.9,0.93924817]
[1633127589764,0.05572674,3299.0,3298.9,2.23324817]
[1633127589965,0.003,3299.5,3299.3,0.00597326]
[1633127590268,0.003,3300.0,3299.4,4.11154296]
[1633127590466,0.003,3300.5,3300.4,3.42011572]
[1633127590664,0.003,3300.5,3300.4,3.44454201]
[1633127590869,0.003,3300.5,3300.4,4.73854201]
[1633127591069,0.003,3301.0,3300.4,13.78064375]
[1633127591267,0.003,3301.0,3300.4,16.25680505]
[1633127591466,0.003,3301.0,3300.4,16.73584074]
[1633127591668,0.003,3301.0,3300.9,1.00108781]
[1633127591865,0.003,3301.0,3300.9,2.29508781]
[1633127592066,1.503,3301.0,3300.9,2.29508781]
[1633127592266,1.503,3301.0,3300.9,6.83773781]
[1633127592267,1.53734895,3301.0,3300.9,6.83773781]
[1633127592466,1.53734895,3301.0,3300.9,4.54265]
[1633127592669,1.71934895,3301.0,3300.5,0.25171064]
[1633127592867,2.85574895,3301.0,3300.5,0.25171064]
[1633127593269,7.40023895,3301.0,3300.5,0.25171064]
[1633127593471,1.68689763,3300.7,3300.5,0.25171064]
[1633127593668,4.49605821,3300.6,3300.5,0.25171064]
[1633127593868,0.182,3300.6,3300.5,0.25171064]
[1633127595068,0.182,3300.6,3300.5,1.54571064]
[1633127595268,0.182,3300.6,3300.5,0.25171064]
[1633127596870,0.182,3300.6,3300.5,1.54571064]
[1633127597073,1.53734895,3301.0,3300.5,1.54571064]
[1633127597271,1.53734895,3301.0,3300.5,0.25171064]
[1633127597471,1.503,3301.0,3300.4,3.42011572]
[1633127597671,1.503,3301.0,3300.6,0.88505563]
[1633127597872,1.503,3301.0,3300.8,1.294]
[1633127598072,1.503,3301.0,3300.6,0.88505563]
[1633127598974,11.2572,3302.0,3301.5,0.03707977]
[1633127598975,0.003,3302.0,3301.5,0.03707977]
[1633127599175,0.003,3302.0,3301.7,1.01565791]
[1633127599372,0.003,3302.0,3301.7,0.02421527]
[1633127599972,0.003,3302.0,3301.5,4.57912977]
[1633127600174,0.185,3302.0,3301.5,0.03707977]
[1633127600772,0.84004725,3301.9,3301.5,0.03707977]
[1633127601176,4.25807778,3301.6,3301.5,0.03707977]
[1633127601377,4.46289321,3301.6,3301.5,0.03707977]
[1633127601974,4.46289321,3301.6,3301.0,1.506]
[1633127601975,4.05,3301.5,3301.0,1.506]
[1633127602176,6.05979,3301.3,3301.0,1.506]
[1633127602375,4.35660517,3301.1,3301.0,1.506]
[1633127602576,4.53860517,3301.1,3301.0,1.506]
[1633127602775,0.48860517,3301.1,3301.0,1.506]
[1633127602975,0.52297865,3301.1,3301.0,1.75759541]
[1633127603176,1.40752039,3301.1,3301.0,1.75759541]
[1633127603375,2.7,3301.0,3300.5,0.003]
[1633127603575,0.182,3300.9,3300.5,0.003]
[1633127604378,4.54451,3300.7,3300.5,0.003]
[1633127604575,0.182,3300.6,3300.5,0.003]
[1633127604976,0.86684085,3300.4,3299.6,0.003]
[1633127605179,3.38165695,3300.3,3299.6,0.003]
[1633127605377,0.41952954,3300.3,3299.6,0.003]
[1633127605582,0.9816471,3299.8,3299.6,0.003]
[1633127605779,4.05,3299.6,3299.5,0.013]
[1633127605980,10.41414965,3299.5,3299.3,0.00597326]
[1633127606178,4.232,3299.4,3299.3,0.00597326]
[1633127606780,8.77947,3299.4,3299.3,0.00597326]
[1633127607379,20.06447,3299.4,3299.3,0.00597326]
[1633127607578,19.95087,3299.4,3299.3,0.00597326]
[1633127607779,20.06927,3299.4,3299.3,0.00597326]
[1633127607978,16.01927,3299.4,3299.3,0.00597326]
[1633127608178,16.01767,3299.4,3299.3,0.00597326]
[1633127608378,15.83407,3299.4,3299.3,0.00597326]
[1633127608579,15.83727,3299.4,3299.3,0.13233087]
[1633127608986,4.05,3299.3,3299.2,0.006]
[1633127609187,4.196,3299.3,3299.2,0.006]
[1633127609380,5.0345001,3299.3,3299.2,0.006]
[1633127609983,0.9845001,3299.3,3299.2,0.006]
[1633127611181,4.05,3299.2,3298.5,0.004]
[1633127611387,3.0348016,3299.0,3298.5,0.004]
[1633127611583,0.146,3298.9,3298.5,0.004]
[1633127611788,3.17781,3298.9,3298.5,0.004]
[1633127612183,4.54799,3298.6,3298.5,0.004]
[1633127612582,4.69399,3298.6,3298.5,0.004]
[1633127614282,4.69399,3298.6,3297.7,0.005]
[1633127614283,4.05,3298.5,3297.7,0.005]
[1633127614486,3.17795,3298.4,3297.7,0.005]
[1633127614882,3.0322,3298.0,3297.7,0.005]
[1633127615084,0.82940784,3297.8,3297.7,0.005]
[1633127616082,4.54814,3297.9,3297.7,0.005]
[1633127617088,0.146,3297.8,3297.7,0.005]
[1633127617283,1.62394455,3297.8,3297.7,0.005]
[1633127617484,1.84826968,3297.8,3297.7,0.005]
[1633127617682,1.62394455,3297.8,3297.7,0.005]
[1633127617883,1.5983,3297.8,3297.7,0.005]
[1633127618087,11.3291,3298.1,3297.7,1.299]
[1633127618283,0.146,3298.4,3297.7,1.299]
[1633127618284,0.146,3298.4,3297.7,0.005]
[1633127618884,0.86958844,3297.9,3297.7,0.005]
[1633127619093,4.54832,3297.8,3297.7,0.005]
[1633127619482,0.146,3298.0,3297.7,0.005]
[1633127619689,0.146,3298.0,3297.8,0.06368981]
[1633127620049,0.146,3298.0,3297.7,0.005]
[1633127620050,4.0,3297.9,3297.7,0.005]
[1633127620185,0.45816189,3297.8,3297.7,0.005]
[1633127620383,1.41872847,3297.8,3297.7,0.005]
[1633127621284,1.41872847,3297.8,3297.4,0.006]
[1633127621285,4.30345964,3297.7,3297.4,0.006]
[1633127621484,4.44945964,3297.7,3297.4,0.006]
[1633127621684,4.56625964,3297.7,3297.4,0.006]
[1633127622086,0.016,3297.3,3297.1,0.006]
[1633127622291,0.016,3297.3,3297.0,0.009]
[1633127622292,8.55072,3297.2,3297.0,0.009]
[1633127622486,0.39595543,3297.1,3296.9,0.006]
[1633127622686,0.39595543,3297.1,3296.1,0.006]
[1633127622687,4.31932679,3296.8,3296.1,0.006]
[1633127622885,4.30628193,3296.5,3296.1,0.006]
[1633127623084,3.37790761,3296.5,3296.3,0.006]
[1633127623284,13.50590761,3296.5,3296.4,4.393e-05]
[1633127623487,13.50590761,3296.5,3296.1,0.006]
[1633127623488,6.12810605,3295.6,3295.5,0.003]
[1633127623690,6.12810605,3295.6,3294.7,0.68234637]
[1633127623691,0.5509469,3295.0,3294.7,0.68234637]
[1633127623884,0.5509469,3295.0,3294.7,0.53234637]
[1633127623885,0.5009469,3295.0,3294.7,0.53234637]
[1633127624085,0.146,3294.9,3294.7,2.99234637]
[1633127624295,0.146,3294.9,3294.8,0.95858525]
[1633127624485,0.003,3295.5,3294.8,0.95858525]
[1633127624486,3.1838246,3295.5,3295.0,0.71961196]
[1633127624686,0.149,3295.5,3295.0,0.71961196]
[1633127624890,0.149,3295.5,3295.0,0.66961196]
[1633127625087,0.149,3295.5,3295.1,0.03267012]
[1633127625283,0.149,3295.5,3295.3,0.85007419]
[1633127625284,0.40279832,3295.5,3295.3,0.85007419]
[1633127625685,0.25679832,3295.5,3295.4,3.98714079]
[1633127625883,0.25679832,3295.5,3295.3,0.85007419]
[1633127626087,0.25679832,3295.5,3295.2,0.026371]
[1633127626285,0.25679832,3295.5,3294.7,0.46280347]
[1633127626286,0.40279832,3295.5,3294.7,0.46280347]
[1633127627686,0.6039061,3295.5,3294.7,0.46280347]
[1633127627888,0.6039061,3295.5,3294.6,0.006]
[1633127627889,0.25541064,3295.0,3294.6,0.006]
[1633127628087,0.31633712,3294.8,3294.5,0.003]
[1633127628289,0.31633712,3294.8,3294.0,0.009]
[1633127628290,0.21842887,3294.4,3294.0,0.009]
[1633127628487,4.0,3294.2,3293.7,7.3334497]
[1633127628687,0.36765602,3294.1,3293.7,7.3334497]
[1633127628887,0.02547074,3293.8,3293.1,0.006]
[1633127629089,0.02547074,3293.8,3292.3,0.006]
[1633127629090,0.061754,3293.6,3292.3,0.006]
[1633127629289,0.061754,3293.6,3291.7,0.006]
[1633127629290,3.03765,3293.2,3291.7,0.006]
[1633127629489,0.003,3292.5,3291.8,0.0096]
[1633127630288,0.003,3292.5,3292.1,1.294]
[1633127630487,0.003,3292.5,3291.9,0.81277448]
[1633127630687,0.27241484,3292.5,3291.9,0.83456609]
[1633127630887,0.27241484,3292.5,3292.2,0.02488088]
[1633127631196,0.1168,3294.1,3292.2,0.02488088]
[1633127631197,0.003,3294.5,3293.9,8.86171032]
[1633127631388,0.003,3294.5,3293.9,12.87093653]
[1633127631588,0.003,3294.5,3293.9,8.8863773]
[1633127631788,0.003,3294.5,3293.9,8.86171032]
[1633127632052,4.606573,3294.2,3293.9,8.86171032]
[1633127632190,4.606573,3294.2,3292.8,3.20477311]